[Event "Bangabandhu Premier Div League 2023-24"]
[Site "Dhaka"]
[Date "2024.02.09"]
[Round "9.7"]
[White "Tanvir, Alam"]
[Black "Rahman, Ziaur"]
[Result "0-1"]
[ECO "B06"]
[WhiteElo "1836"]
[BlackElo "2428"]
[Annotator "TA"]
[PlyCount "66"]
[EventDate "2024.02.01"]
[EventCountry "BAN"]
[SourceTitle "playchess.com"]
[Source "ChessBase"]
[SourceQuality "1"]
[TimeControl "40/5400+30:1800+30"]

{[%evp 11,66,21,30,25,32,34,53,33,24,22,48,49,25,-15,-9,-11,28,27,26,-5,66,22,31,22,29,-33,-35,-148,-131,-179,-154,-193,-176,-210,-225,-208,-249,-379,-362,-378,-373,-460,-437,-628,-638,-576,-498,-655,-638,-691,-703,-681,-674,-706,-687,-679,-654]} 1. d4 {[%emt 0:00:15]} d6 2. g3 g6 {[%emt 0:01:42]} 3. Bg2 {[%emt 0:01:33]} Bg7 4. e4 c5 {[%emt 0:02:02]} 5. dxc5 {[%emt 0:02:24]} Qa5+ {[%emt 0:00:12]} 6. c3 {[%emt 0:00:18]} Qxc5 {[%emt 0:00:08]} 7. Ne2 {[%emt 0:00:18]} Nf6 {[%emt 0:00:19]} 8. O-O Nbd7 9. Na3 {[%emt 0:04:02] White is slightly better.} O-O {[%emt 0:02:22]} 10. Be3 Qc7 11. Nb5 Qb8 12. h3 {[%emt 0:10:20]} a6 13. Nbd4 Nc5 14. Qc2 {[%emt 0:10:32]} Bd7 {[%emt 0:22:08]} 15. f4 Rc8 {[%emt 1:09:07]} (15... Qc8 $11) 16. Rae1 {[%emt 1:08:48]} a5 {[%emt 0:00:30]} 17. g4 {[%emt 0:00:30][%cal Oe4e5]} a4 {[%emt 0:00:00]} 18. Ng3 {[%emt 0:00:30]} ({White should play} 18. g5 $11 Nh5 19. b4) 18... e5 $15 {[%emt 0:01:00]} 19. Nf3 {[%emt 0:00:30] Black continues to play with concentration.} (19. Nde2 $15) 19... exf4 $17 {[%emt 0:00:30]} 20. Bxf4 {[%emt 0:00:00] [#]} Bb5 $1 {[%emt 0:00:00][%cal Oa4a3]} 21. c4 {[%emt 0:00:00]} Ne6 {[%emt 0:01:00]} 22. Nd2 {[%emt 0:01:30]} Nxf4 {[%emt 0:00:00]} 23. Rxf4 {[%emt 0:00:00]} Nd7 {[%emt 0:01:00][%cal Od6d5]} 24. Qd3 {[%emt 0:00:00]} (24. Ne2 $142) 24... Ne5 $19 {[%emt 0:00:30]} 25. Qf1 {[%emt 0:01:30]} Be8 {[%emt 0:00:30]} 26. h4 {[%emt 0:00:30]} b5 {[%emt 0:00:30][%cal Rb5c4] Black is clearly winning.} 27. b3 {[%emt 0:00:00]} (27. Nf5 $142 gxf5 28. exf5) 27... axb3 {[%emt 0:00:00]} 28. axb3 {[%emt 0:01:00]} Ra2 {[%emt 0:00:00]} 29. Nf3 {[%emt 0:00:30]} Qa7+ {[%emt 0:01:30]} 30. Kh2 {[%emt 0:00:30]} Rf2 {[%emt 0:00:00]} 31. Qg1 {[%emt 0:00:00]} Nd3 {[%emt 0:01:00]} (31... bxc4 $2 32. Nxe5 Rxg2+ 33. Kxg2 $19) 32. Re2 {[%emt 0:01:00]} Rxg2+ {[%emt 0:00:30]} (32... Nxf4 $2 33. Qxf2 Qd7 34. Ra2 $19) 33. Rxg2 {[%emt 0:00:30]} Qxg1+ {[%emt 0:00:00] Weighted Error Value: White=0.50/Black=0.12 (very precise) .  Mistake:       	White=4     	Black=1      Inaccurate:     	White=4     	Black=2      OK:         	White=5     	Black=11     Best:        	---       	Black=1      Strong:       	---       	Black=1} 0-1

[Event "Bangabandhu Premier Div League 2023-24"]
[Site "Dhaka"]
[Date "2024.02.09"]
[Round "9.8"]
[White "Manon, Reja Neer"]
[Black "Suvradeepta, Das"]
[Result "1-0"]
[ECO "B09"]
[WhiteElo "2169"]
[BlackElo "2141"]
[Annotator "NA RC"]
[PlyCount "39"]
[EventDate "2024.02.01"]
[EventCountry "BAN"]
[SourceTitle "playchess.com"]
[Source "ChessBase"]
[SourceQuality "1"]
[TimeControl "40/5400+30:1800+30"]

1. e4 {[%emt 0:15:58]} d6 {[%emt 0:00:04]} 2. d4 {[%emt 0:02:18]} Nf6 {[%emt 0:00:15]} 3. Nc3 {[%emt 0:00:12]} g6 {[%emt 0:00:11]} 4. f4 {[%emt 0:00:15]} Bg7 {[%emt 0:00:14]} 5. Nf3 {[%emt 0:01:33]} O-O {[%emt 0:00:08]} 6. Bd3 {[%emt 0:15:58]} c5 {[%emt 0:02:01]} 7. dxc5 {[%emt 0:00:50]} dxc5 {[%emt 0:00:06]} 8. e5 {[%emt 0:03:45]} Nd5 {[%emt 0:10:47]} 9. Nxd5 {[%emt 0:00:30]} Qxd5 {[%emt 0:00:30]} 10. Qe2 {[%emt 0:03:22]} Nc6 11. Be4 {[%emt 0:04:47]} Qd8 {[%emt 0:01:34]} 12. Be3 {[%emt 0:00:02]} Qc7 {[%emt 0:29:30]} 13. Qb5 {[%emt 0:02:39]} f6 {[%emt 0:12:06]} 14. exf6 {[%emt 0:10:54]} Bxf6 {[%emt 0:07:34]} 15. c3 {[%emt 0:00:33]} e5 {[%emt 0:04:53]} 16. fxe5 {[%emt 0:08:21]} Be7 {[%emt 0:11:41]} 17. Bh6 {[%emt 0:04:28]} Rf7 {[%emt 0:14:15]} 18. Bd5 {[%emt 0:00:50]} Nxe5 {[%emt 0:00:09]} 19. Qe8+ {[%emt 0:00:40]} Bf8 {[%emt 0:00:05]} 20. Qxf8# {[%emt 0:00:05]} 1-0

[Event "Bangabandhu Premier Div League 2023-24"]
[Site "Dhaka"]
[Date "2024.02.09"]
[Round "9.8"]
[White "Sakline Mostafa, Sajid"]
[Black "Diya Chowdhury"]
[Result "1/2-1/2"]
[ECO "E14"]
[WhiteElo "2110"]
[BlackElo "1881"]
[Annotator "NA RC"]
[PlyCount "80"]
[EventDate "2024.02.01"]
[EventCountry "BAN"]
[SourceTitle "playchess.com"]
[Source "ChessBase"]
[SourceQuality "1"]
[TimeControl "40/5400+30:1800+30"]

1. d4 {[%emt 0:00:06]} Nf6 2. c4 e6 {[%emt 0:00:31]} 3. Nf3 {[%emt 0:00:10]} Bb4+ {[%emt 0:00:11]} 4. Nbd2 {[%emt 0:00:09]} b6 {[%emt 0:00:18]} 5. a3 Bxd2+ {[%emt 0:00:15]} 6. Qxd2 Bb7 {[%emt 0:00:16]} 7. e3 {[%emt 0:00:25]} O-O {[%emt 0:00:20]} 8. Be2 {[%emt 0:00:14]} d6 {[%emt 0:00:26]} 9. O-O {[%emt 0:00:19]} Nbd7 10. b4 {[%emt 0:00:44]} Ne4 {[%emt 0:01:22]} 11. Qc2 {[%emt 0:00:10]} f5 {[%emt 0:00:09]} 12. Bb2 {[%emt 0:00:13]} Qe7 13. Rfd1 Ndf6 {[%emt 0:16:36]} 14. c5 {[%emt 0:34:55]} Bd5 15. Ne1 {[%emt 1:00:35]} Ng4 {[%emt 1:17:36]} 16. Nd3 {[%emt 0:00:30]} Nexf2 {[%emt 0:00:00]} 17. Nxf2 {[%emt 0:00:00]} Nxe3 {[%emt 0:01:00]} 18. Qc3 {[%emt 0:01:00]} Qg5 {[%emt 0:00:00]} 19. g3 {[%emt 0:00:00]} f4 {[%emt 0:00:00]} 20. Nh3 {[%emt 0:01:00]} Qf5 {[%emt 0:01:30]} 21. Nxf4 {[%emt 0:00:00]} Qe4 {[%emt 0:00:30]} 22. Qd3 {[%emt 0:01:00]} Qh1+ {[%emt 0:00:00]} 23. Kf2 {[%emt 0:00:00]} Nxd1+ {[%emt 0:00:00]} 24. Rxd1 {[%emt 0:00:00]} Qxh2+ {[%emt 0:00:00]} 25. Ke1 {[%emt 0:00:00]} g5 {[%emt 0:02:00]} 26. Nxd5 {[%emt 0:00:00]} exd5 {[%emt 0:00:00]} 27. Kd2 {[%emt 0:00:00]} Rae8 {[%emt 0:00:00]} 28. Re1 {[%emt 0:00:00]} Rf2 {[%emt 0:00:00]} 29. cxd6 {[%emt 0:00:00]} cxd6 {[%emt 0:00:00]} 30. Qb5 {[%emt 0:00:00]} Kf8 {[%emt 0:00:00]} 31. Qd3 {[%emt 0:00:20]} Kg7 {[%emt 0:00:00]} 32. Kd1 {[%emt 0:01:13]} Rg2 {[%emt 0:00:00]} 33. g4 {[%emt 0:03:57]} Re4 {[%emt 0:00:00]} 34. Qb5 {[%emt 0:00:00]} Rf2 {[%emt 0:04:30]} 35. Qd7+ {[%emt 0:00:04]} Rf7 {[%emt 0:00:00]} 36. Qb5 {[%emt 0:00:41]} Rf2 {[%emt 0:00:00]} 37. Qd7+ {[%emt 0:00:07]} Rf7 {[%emt 0:00:00]} 38. Qb5 {[%emt 0:00:02]} Rf2 {[%emt 0:00:00]} 39. Qd7+ {[%emt 0:00:12]} Rf7 {[%emt 0:00:00]} 40. Qb5 {[%emt 0:00:22]} Rf2 {[%emt 0:00:00]} 1/2-1/2

[Event "Bangabandhu Premier Div League 2023-24"]
[Site "Dhaka"]
[Date "2024.02.09"]
[Round "9.9"]
[White "Alekhya Mukhopadhyay"]
[Black "Swarnavo Choudhury"]
[Result "1/2-1/2"]
[ECO "B48"]
[WhiteElo "2184"]
[BlackElo "2056"]
[Annotator "NA RC"]
[PlyCount "87"]
[EventDate "2024.02.01"]
[EventCountry "BAN"]
[SourceTitle "playchess.com"]
[Source "ChessBase"]
[SourceQuality "1"]
[TimeControl "40/5400+30:1800+30"]

1. e4 {[%emt 0:01:22]} c5 {[%emt 0:00:10]} 2. Nf3 {[%emt 0:01:03]} e6 {[%emt 0:00:09]} 3. d4 {[%emt 0:00:10]} cxd4 {[%emt 0:00:08]} 4. Nxd4 {[%emt 0:00:03]} Nc6 {[%emt 0:00:08]} 5. Nc3 {[%emt 0:00:05]} Qc7 {[%emt 0:00:04]} 6. Be3 {[%emt 0:00:07]} a6 {[%emt 0:00:05]} 7. Qd2 {[%emt 0:00:06]} Nf6 {[%emt 0:00:54]} 8. O-O-O {[%emt 0:00:21]} Bb4 {[%emt 0:00:14]} 9. f3 {[%emt 0:00:04]} Ne7 {[%emt 0:00:53]} 10. Kb1 {[%emt 0:03:27]} d5 {[%emt 0:00:53]} 11. Ncb5 Qa5 {[%emt 0:05:14]} 12. Nc7+ {[%emt 0:06:25]} Qxc7 {[%emt 0:07:15]} 13. Qxb4 e5 {[%emt 0:13:23]} 14. Nb3 {[%emt 0:01:23]} d4 15. Bg5 h6 {[%emt 1:08:30]} 16. Bxf6 {[%emt 0:09:19]} gxf6 {[%emt 0:00:00]} 17. c3 {[%emt 0:02:11]} dxc3 {[%emt 0:00:00]} 18. Qxc3 {[%emt 0:00:32]} Qxc3 {[%emt 0:00:00]} 19. bxc3 {[%emt 0:00:05]} O-O {[%emt 0:02:00]} 20. Rd6 {[%emt 0:01:24]} Be6 {[%emt 0:00:30]} 21. Rb6 {[%emt 1:12:53]} Rab8 {[%emt 0:00:00]} 22. Nc5 {[%emt 0:00:00]} Rfc8 {[%emt 0:00:00]} 23. Nxe6 {[%emt 0:00:00]} fxe6 {[%emt 0:00:00]} 24. Rxe6 {[%emt 0:00:00]} Kf7 {[%emt 0:00:00]} 25. Rb6 {[%emt 0:00:00]} Rxc3 {[%emt 0:00:00]} 26. Be2 {[%emt 0:00:00]} Rc6 {[%emt 0:00:00]} 27. Rb4 {[%emt 0:00:00]} b5 {[%emt 0:00:00]} 28. Rd1 {[%emt 0:03:30]} Rc7 {[%emt 0:00:00]} 29. Rb2 {[%emt 0:00:00]} Rbc8 {[%emt 0:00:00]} 30. g3 {[%emt 0:00:00]} Nc6 {[%emt 0:00:00]} 31. f4 {[%emt 0:00:00]} Ke7 {[%emt 0:00:00]} 32. Bg4 {[%emt 0:00:00]} Rg8 {[%emt 0:00:00]} 33. Bh3 {[%emt 0:00:00]} Nd4 {[%emt 0:00:00]} 34. Rf2 {[%emt 0:03:00]} Rf8 {[%emt 0:00:00]} 35. Rdf1 {[%emt 0:00:00]} Kd6 {[%emt 0:00:00]} 36. fxe5+ {[%emt 0:00:00]} Kxe5 {[%emt 0:00:00]} 37. Rf4 {[%emt 0:00:00]} Rc4 {[%emt 0:00:55]} 38. Rh4 {[%emt 0:00:00]} Rb4+ {[%emt 0:01:18]} 39. Kc1 {[%emt 0:00:00]} Rd8 {[%emt 0:07:17]} 40. Re1 {[%emt 0:00:00]} Rc4+ {[%emt 0:00:00]} 41. Kb1 {[%emt 0:20:26]} Rb4+ {[%emt 0:30:22]} 42. Kc1 {[%emt 0:00:10]} Rc4+ {[%emt 0:00:00]} 43. Kb1 {[%emt 0:13:54]} Rb4+ {[%emt 0:00:00]} 44. Kc1 {[%emt 0:00:00]} 1/2-1/2

[Event "Bangabandhu Premier Div League 2023-24"]
[Site "Dhaka"]
[Date "2024.02.09"]
[Round "9.10"]
[White "Sanket Chakravarty"]
[Black "Ankit Ray"]
[Result "1/2-1/2"]
[ECO "B44"]
[WhiteElo "2361"]
[BlackElo "1912"]
[Annotator "TA"]
[PlyCount "54"]
[EventDate "2024.02.01"]
[EventCountry "BAN"]
[SourceTitle "playchess.com"]
[Source "ChessBase"]
[SourceQuality "1"]
[TimeControl "40/5400+30:1800+30"]

{[%evp 9,54,17,18,0,7,0,11,-7,19,14,27,21,26,21,21,34,35,15,41,28,63,68,71,62,81,64,59,52,67,64,71,41,56,21,17,-45,-45,-40,-36,-68,-42,-54,0,-61,0,-47,0]} 1. e4 {[%emt 0:01:08]} c5 {[%emt 0:00:11]} 2. Nf3 {[%emt 0:00:16]} e6 {[%emt 0:00:55]} 3. d4 {[%emt 0:00:20]} cxd4 {[%emt 0:00:21]} 4. Nxd4 {[%emt 0:00:11]} Nc6 {[%emt 0:00:09]} 5. Bf4 {[%emt 0:00:29]} d6 {[%emt 0:00:41]} 6. Nxc6 {[%emt 0:00:27]} bxc6 7. Bd3 {[%emt 0:00:49]} e5 {[%emt 0:04:12]} 8. Be3 {[%emt 0:01:10] The position is equal.} Nf6 {[%emt 0:00:10][%cal Bg8f6,Bf6e8,Be8c7][%mdl 32]} 9. O-O {[%emt 0:00:48]} Be7 {[%emt 0:17:48]} 10. c4 {[%emt 0:01:46]} O-O {[%emt 0:00:14]} 11. Nc3 {[%emt 0:01:14]} Be6 {[%emt 0:06:24]} 12. b3 {[%emt 0:19:23]} Qd7 {[%emt 1:05:25]} 13. f3 {[%emt 1:08:59]} Ne8 {[%emt 0:00:00]} 14. Qd2 {[%emt 0:00:00]} f5 {[%emt 0:01:00]} 15. exf5 {[%emt 0:00:00]} Bxf5 {[%emt 0:00:00]} 16. Rad1 {[%emt 0:00:00]} Nc7 {[%emt 0:00:00]} 17. Bxf5 {[%emt 0:00:00]} Qxf5 {[%emt 0:01:30]} 18. Ne4 {[%emt 0:02:30]} Rfd8 {[%emt 0:00:00]} 19. Qa5 {[%emt 0:00:00]} Qc8 {[%emt 0:00:00]} 20. Nc3 {[%emt 0:00:00] White has more active pieces.} (20. Bxa7 $2 {perishes.} Ne6 (20... Qb7 $2 21. Kh1 $19) 21. Kh1 Qb7 $19) 20... Qb7 {[%emt 0:00:00]} 21. Bf2 {[%emt 0:00:00]} d5 {[%emt 0:00:00]} 22. c5 {[%emt 0:02:00]} ({Better is} 22. a3 $11) 22... Bf6 {[%emt 0:00:00]} 23. Rfe1 {[%emt 0:00:30]} Re8 {[%emt 0:00:00]} 24. Bg3 {[%emt 0:00:00]} Kh8 {[%emt 0:00:00]} 25. Kh1 {[%emt 0:00:00]} Kg8 {[%emt 0:00:00]} 26. Kg1 $1 {[%emt 0:00:00]} Kh8 {[%emt 0:00:00]} 27. Kh1 {[%emt 0:00:00]} Kg8 {[%emt 0:00:00] Weighted Error Value: White=0.14 (very precise) /Black=0.15 (very precise) .  Mistake:       	White=1     	Black=1      Inaccurate:     	White=3     	Black=4      OK:         	White=6     	Black=4      Best:        	White=1     	---        Strong:       	White=1     	---} (27... Rac8 $15) 1/2-1/2

[Event "Bangabandhu Premier Div League 2023-24"]
[Site "Dhaka"]
[Date "2024.02.09"]
[Round "9.11"]
[White "Tashriq Saihan, Shan"]
[Black "Rabby, Salim"]
[Result "1-0"]
[ECO "C54"]
[WhiteElo "1772"]
[BlackElo "1931"]
[Annotator "NA RC"]
[PlyCount "71"]
[EventDate "2024.02.01"]
[EventCountry "BAN"]
[SourceTitle "playchess.com"]
[Source "ChessBase"]
[SourceQuality "1"]
[TimeControl "40/5400+30:1800+30"]

1. e4 {[%emt 0:02:05]} Nc6 {[%emt 0:02:23]} 2. Nf3 {[%emt 0:00:16]} e5 {[%emt 0:00:38]} 3. Bc4 {[%emt 0:00:16]} Bc5 {[%emt 0:01:10]} 4. d3 {[%emt 0:00:19]} Nf6 {[%emt 0:02:07]} 5. Bg5 {[%emt 0:00:18]} h6 {[%emt 0:02:41]} 6. Bh4 {[%emt 0:00:17]} g5 {[%emt 0:02:09]} 7. Bg3 {[%emt 0:00:26]} d6 {[%emt 0:00:01]} 8. c3 {[%emt 0:01:20]} Bb6 {[%emt 0:01:05]} 9. a4 {[%emt 0:01:26]} a6 {[%emt 0:01:24]} 10. Nbd2 {[%emt 0:05:09]} O-O {[%emt 0:11:44]} 11. O-O {[%emt 0:01:36]} Nh5 {[%emt 0:14:41]} 12. Nxe5 {[%emt 0:00:30]} Nxg3 {[%emt 0:00:30]} 13. Nxc6 {[%emt 0:00:30]} bxc6 14. hxg3 d5 {[%emt 0:00:44]} 15. Bb3 {[%emt 0:04:51]} Be6 {[%emt 0:56:43]} 16. a5 {[%emt 0:11:08]} Ba7 {[%emt 0:00:00]} 17. Ba4 {[%emt 0:01:41]} Rb8 {[%emt 0:00:00]} 18. Qc2 {[%emt 1:07:22]} dxe4 {[%emt 0:00:00]} 19. dxe4 {[%emt 0:00:00]} Qd6 {[%emt 0:00:00]} 20. Kh1 {[%emt 0:00:00]} Rfd8 {[%emt 0:00:00]} 21. Nf3 {[%emt 0:00:00]} Bg4 {[%emt 0:00:00]} 22. Rad1 {[%emt 0:00:00]} Qg6 {[%emt 0:00:00]} 23. Kg1 {[%emt 0:00:00]} Re8 {[%emt 0:04:00]} 24. Rfe1 {[%emt 0:00:00]} Qh5 {[%emt 0:00:00]} 25. Rd3 {[%emt 0:00:00]} Re6 {[%emt 0:00:00]} 26. Nd4 {[%emt 0:00:00]} Rf6 {[%emt 0:00:00]} 27. e5 {[%emt 0:00:00]} Re8 {[%emt 0:00:00]} 28. Qd2 {[%emt 0:00:00]} Bxd4 {[%emt 0:00:11]} 29. exf6 {[%emt 0:00:00]} Rxe1+ {[%emt 0:00:02]} 30. Qxe1 {[%emt 0:00:00]} Bxf6 {[%emt 0:00:04]} 31. Qe4 {[%emt 0:00:00]} Be2 {[%emt 0:00:55]} 32. Rd2 {[%emt 0:00:00]} c5 {[%emt 0:01:55]} 33. Rxe2 {[%emt 0:00:00]} Kg7 {[%emt 0:01:20]} 34. g4 {[%emt 0:00:00]} Qh4 {[%emt 0:00:08]} 35. g3 {[%emt 0:00:00]} Qh3 {[%emt 0:00:03]} 36. Bd7 {[%emt 0:00:00]} 1-0

[Event "Bangabandhu Premier Div League 2023-24"]
[Site "Dhaka"]
[Date "2024.02.09"]
[Round "9.12"]
[White "Arpan Das"]
[Black "Muhimenul, Islam"]
[Result "1-0"]
[ECO "C06"]
[WhiteElo "2367"]
[BlackElo "1970"]
[Annotator "TA"]
[PlyCount "103"]
[EventDate "2024.02.01"]
[EventCountry "BAN"]
[SourceTitle "playchess.com"]
[Source "ChessBase"]
[SourceQuality "1"]
[TimeControl "40/5400+30:1800+30"]

{[%evp 14,103,32,44,62,67,89,78,78,81,97,89,87,89,181,168,186,184,189,194,180,193,189,166,204,161,261,281,274,282,265,276,296,290,285,279,438,456,511,494,790,776,1347,1346,1337,1354,1341,1296,1251,1163,1046,1017,997,925,1073,1025,1387,1360,1343,1339,1336,1328,1574,1600,1650,1555,1816,1807,1820,1770,1714,1687,2041,1982,1829,1763,1933,1760,2112,2089,2558,2629,29984,29985,29985,29986,5506,4153,29978,29979,29986,29987]} 1. e4 {[%emt 0:01:11]} e6 {[%emt 0:00:05]} 2. d4 {[%emt 0:00:14]} d5 {[%emt 0:00:13]} 3. Nd2 {[%emt 0:00:04]} Nf6 {[%emt 0:01:05]} 4. e5 {[%emt 0:00:04]} Nfd7 {[%emt 0:00:23]} 5. Bd3 {[%emt 0:00:07]} c5 {[%emt 0:00:24]} 6. c3 {[%emt 0:00:04]} Nc6 {[%emt 0:00:25]} 7. Ne2 {[%emt 0:00:08]} Qb6 {[%emt 0:01:25]} 8. Nf3 {[%emt 0:00:06]} a5 {[%emt 0:00:36]} 9. O-O {[%emt 0:04:28]} Be7 {[%emt 0:00:44]} 10. a3 {[%emt 0:05:46]} a4 {[%emt 0:01:50] White is better.} 11. Bc2 {[%emt 0:00:30]} Qb5 {[%emt 0:00:31]} 12. Ng3 {[%emt 0:03:37]} g6 {[%emt 0:03:00] Inhibits Nh5.} 13. Rb1 {[%emt 0:02:45]} c4 (13... h6 $16 {keeps fighting.}) 14. Bh6 $18 {[%emt 0:04:26]} Qa5 {[%emt 0:02:50]} 15. Qd2 {[%emt 0:01:21]} Bf8 {[%emt 0:11:31]} 16. Bxf8 {[%emt 0:00:30]} Nxf8 {[%emt 0:00:30]} 17. Qh6 {[%emt 0:00:30]} Rg8 {[%emt 0:00:30] Prevents Qg7} 18. Ng5 {[%cal Og3e4]} Qd8 19. Rfe1 {[%emt 0:08:20][%cal Og3e4]} (19. Nxh7 Rh8 $11) 19... f5 {[%emt 1:13:58]} (19... Ne7 $142 20. Nxh7 Nxh7) 20. exf6 $1 {[%emt 0:03:25]} (20. Nxh7 Rh8 $14) 20... Qxf6 {[%emt 0:00:00]} 21. Nh5 {[%emt 0:00:59] Dodges Qg7} (21. Nxh7 Qh8 $16) 21... Qe7 {[%emt 0:00:00]} 22. Nf4 {[%emt 0:00:18] Black must now prevent Nxd5.} Ra5 {[%emt 0:00:00]} 23. Bd1 {[%emt 1:03:07]} Qf6 {[%emt 0:00:00] [#]} 24. g3 {[%emt 0:00:00][%cal Od1g4] Strongly threatening Bg4!} (24. Nxh7 Qh8 25. Bf3 Ne7 $11 (25... Nxh7 26. Nxe6 Nf6 27. Qf4 $16) (25... Qxh7 26. Qxh7 Nxh7 27. Bxd5 $14)) 24... Ne7 {[%emt 0:02:30]} (24... Nd8 $142 25. Bg4 (25. Nxh7 Qh8 $16) 25... Nf7 26. Nxf7 (26. Nxh7 Qh8 $11) 26... Kxf7) 25. Bg4 {[%emt 0:01:00]} (25. Nxh7 $2 Nxh7 26. Bg4 (26. Qxh7 $2 Rh8 $19) 26... Ra6 $19) 25... Ra6 {[%emt 0:00:00]} 26. Re5 {[%emt 0:00:30][%cal Ob1e1] Hoping for Rbe1!} (26. Nxh7 $2 Nxh7 (26... Qh8 27. Nxd5 Nxd5 28. Qg5 $15) 27. Qxh7 Rh8 $19) 26... Rd6 {[%emt 0:00:00]} (26... Qg7 $142) 27. Rbe1 {[%emt 0:00:00]} (27. Nxh7 Nxh7 (27... Qh8 28. Nxe6 Qxh7 29. Qe3 $11) 28. Rbe1 (28. Qxh7 Rh8 $19) 28... Nf8 $19) 27... Kd8 {[%emt 0:00:00]} 28. Nh5 {[%emt 0:00:00]} (28. Nxh7 Nxh7 29. Nxe6+ (29. Qxh7 Rh8 $17) 29... Bxe6 30. Bxe6 (30. Rxe6 Rxe6 31. Rxe6 Nf5 $11) 30... Rf8 31. Qxh7 Qxf2+ 32. Kh1 Rxe6 (32... Qf3+ 33. Kg1 $11) 33. Rxe6 Qf3+ 34. Kg1 Qf2+ 35. Kh1 Qf3+ 36. Kg1 Qf2+ 37. Kh1 $11) 28... gxh5 {[%emt 0:00:00]} 29. Qxf6 {[%emt 0:00:00]} hxg4 {[%emt 0:00:00]} 30. Nf7+ {[%emt 0:00:00]} Kd7 {[%emt 0:00:00]} 31. Nxd6 {[%emt 0:00:00]} Kxd6 {[%emt 0:00:00]} 32. Rg5 {[%emt 0:00:00]} Nfg6 {[%emt 0:00:22] Inhibits Qf4+.} 33. Rxg4 {[%emt 0:00:00]} Bd7 {[%emt 0:00:45][%cal Bc8d7,Bd7e8,Be8f7][%mdl 32]} 34. h4 {[%emt 0:00:00][%cal Bh2h4,Bh4h5][%mdl 32]} Rf8 {[%emt 0:00:43]} 35. Qg7 {[%emt 0:00:00]} Be8 {[%emt 0:01:25]} 36. h5 {[%emt 0:00:00]} Rf7 {[%emt 0:00:37]} 37. Qh6 {[%emt 0:00:00]} Nf8 {[%emt 0:01:05]} 38. Rg7 {[%emt 0:00:00] [#] Intending Rxf7 and mate.} Nf5 {[%emt 0:01:24]} 39. Qf4+ {[%emt 0:00:00]} Kd7 {[%emt 0:00:32][%cal Bd6d7,Bd7e7,Be7f6,Bf6g7][%mdl 32]} 40. Rxf7+ {[%emt 0:00:00]} Bxf7 {[%emt 0:00:14]} 41. Qb8 {[%emt 0:10:10][%csl LRb7,LRf8]} Ke7 {[%emt 0:30:35]} 42. Qxb7+ {[%emt 0:00:23]} Kf6 {[%emt 0:00:00]} 43. Qa8 {[%emt 0:00:00]} Kg7 {[%emt 0:00:00]} 44. Qxa4 {[%emt 0:00:00]} Bxh5 {[%emt 0:00:00]} 45. Qa7+ {[%emt 0:00:00]} Kf6 {[%emt 0:00:00]} 46. a4 {[%emt 0:00:00][%cal Ba3a4,Ba4a5,Ba5a6,Ba6a7][%mdl 32]} Bf3 {[%emt 0:00:00]} 47. a5 {[%emt 0:00:00]} h5 {[%emt 0:00:00][%cal Bh7h5,Bh5h4][%mdl 32]} 48. Qb8 {[%emt 0:00:00]} Ng6 {[%emt 0:00:00]} 49. Qd8+ {[%emt 0:00:00]} Nfe7 {[%emt 0:00:00]} 50. Qd6 {[%emt 0:00:00]} Bg4 {[%emt 0:00:00]} 51. a6 {[%emt 0:00:00]} h4 {[%emt 0:00:00]} 52. a7 {[%emt 0:00:00] Black did not feel at home in the position after the opening.   Weighted Error Value: White=0.05 (flawless) /Black=0.39.  Mistake:       	---       	Black=4      Inaccurate:     	---       	Black=1      OK:         	White=11    	Black=6      Best:        	White=1     	---        Strong:       	White=1     	---} 1-0